Cogmind - Beta 16.1 *** ADVENTURER MODE // 2026.02.18 @ 22:07:01 Player: Zable Result: Destroyed by G-73 Enforcer with Phase Gun Performance ------------- Evolutions (8) 4000 Regions Visited (17) 3400 Robots Destroyed (104) 520 Value Destroyed (4439) 4439 Prototype IDs (35) 700 Alien Tech Used (1) 200 Bonus (3002) 3002 TOTAL SCORE: 16261 Bonus ------- Triggered Max Security 1000 High Alert Combat Kills 15 Follower Combat Kills 687 Entered DSFs 1000 Aligned with FarCom 300 Cogmind --------- Core Integrity 0/1450 Matter 0/300 Energy 99/100 System Corruption 17% Temperature Cool (9) Movement Core (50) Location -2/Quarantine Parts ------- > --- POWER (3) -------- (None) > --- PROPULSION (7) --- (None) > --- UTILITY (9) ------ (None) > --- WEAPON (4) ------- (None) > --- INVENTORY (5) ---- Gravmag System Peak State ------------ > --- POWER ------------ Light Quantum Reactor Light Quantum Reactor Light Quantum Reactor > --- PROPULSION ------- Armored Medium Treads Advanced Heavy Siege Treads Advanced Heavy Siege Treads Advanced Heavy Siege Treads > --- UTILITY ---------- Advanced Heat Sink Advanced Heat Sink Advanced Heat Sink Huge Storage Unit Advanced Visual Processing Unit Improved Weapon Cycler Improved Weapon Cycler Advanced ECM Suite Advanced ECM Suite > --- WEAPON ----------- Improved Matter Neutralizer Enhanced Nova Cannon Enhanced Nova Cannon Enhanced Nova Cannon > --- INVENTORY -------- Light Antimatter Reactor Light Quantum Reactor Latent Energy Streamer Hypervelocity Mass Driver Hypervelocity Mass Driver [Rating: 166] Favorites ----------- Power Enhanced Nuclear Core Engine Ion Engine Power Core Enhanced Nuclear Core Reactor Light Quantum Reactor Propulsion Cooled Cesium-ion Thruster Treads Advanced Heavy Siege Treads Leg Improved Carbon-fiber Leg Wheel Compact Wheel Hover Unit Improved Antigrav System Flight Unit Cooled Cesium-ion Thruster Utility Advanced Visual Processing Unit Device Advanced ECM Suite Storage Small Storage Unit Processor Advanced Visual Processing Unit Hackware Authchip [R/Combat] Artifact Phase Armor Weapon Medium Laser Energy Gun Medium Laser Energy Cannon Enhanced Nova Cannon Ballistic Gun Flak Gun Ballistic Cannon Advanced Assault Cannon Launcher Long-range Missile Launcher Slashing Weapon Greatsword Special Melee Weapon Advanced Datajack Build | -11 -10 -10 -10 -9 -8 -7 -7 -6 -5 -5 -5 -4 -4 -3 -3 -2 -2 ------- Run | Yrd Mat Min Exi Min Mat Fac DSF Fac Fac Was Fac Fac Ext Res DSF Res Qua Slots Evolved 16 | . . . . . 4 2 . 2 2 . . 2 . 2 . 2 . Power 2 | . . . . . . . . . 1 . . . . 1 . . . Propulsion 5 | . . . . . 1 . . 2 1 . . . . 1 . . . Utility 7 | . . . . . 2 2 . . . . . 2 . . . 1 . Weapon 2 | . . . . . 1 . . . . . . . . . . 1 . Parts Attached 112 | 7 1 1 1 . 7 . 9 12 4 4 10 1 8 . 36 4 7 Power 17 | 1 . . . . 1 . . . 1 1 3 . 2 . 5 2 1 Engine 1 | 1 . . . . . . . . . . . . . . . . . Core 8 | . . . . . 1 . . . 1 . 3 . 1 . 2 . . Reactor 8 | . . . . . . . . . . 1 . . 1 . 3 2 1 Propulsion 30 | 2 . . . . 4 . 1 4 1 3 2 . . . 11 . 2 Treads 5 | . . . . . . . . . . . . . . . 4 . 1 Leg 5 | . . . . . 4 . 1 . . . . . . . . . . Wheel 2 | 2 . . . . . . . . . . . . . . . . . Hover 4 | . . . . . . . . . . . . . . . 3 . 1 Flight 14 | . . . . . . . . 4 1 3 2 . . . 4 . . Utility 28 | 2 . . . . 2 . 3 5 1 . 2 . 4 . 7 1 1 Device 20 | 1 . . . . 1 . 3 1 1 . 2 . 4 . 7 . . Storage 2 | 1 . . . . . . . . . . . . . . . 1 . Processor 3 | . . . . . 1 . . 2 . . . . . . . . . Hackware 2 | . . . . . . . . 2 . . . . . . . . . Protection . | . . . . . . . . . . . . . . . . . . Artifact 1 | . . . . . . . . . . . . . . . . . 1 Weapon 37 | 2 1 1 1 . . . 5 3 1 . 3 1 2 . 13 1 3 Energy Gun 12 | 2 . 1 . . . . . . 1 . . . . . 6 . 2 Energy Cannon 10 | . . . 1 . . . . . . . 3 1 1 . 3 1 . Ballistic Gun 2 | . . . . . . . 2 . . . . . . . . . . Ballistic Cannon 5 | . . . . . . . 1 1 . . . . . . 3 . . Launcher 4 | . 1 . . . . . 2 . . . . . 1 . . . . Special Weapon . | . . . . . . . . . . . . . . . . . . Impact Weapon . | . . . . . . . . . . . . . . . . . . Slashing Weapon 2 | . . . . . . . . 2 . . . . . . . . . Piercing Weapon . | . . . . . . . . . . . . . . . . . . Special Melee Weapon 2 | . . . . . . . . . . . . . . . 1 . 1 Unidentified Prototypes 10 | . . . . . 1 . . 1 1 2 1 . 1 . . 1 2 Parts Lost 34 | . 1 . . . . . 4 1 2 . . . 10 . 10 5 1 Power 5 | . . . . . . . . . 1 . . . 2 . . 2 . Propulsion 14 | . . . . . . . 2 . . . . . 2 . 8 2 . Utility 8 | . . . . . . . 2 1 1 . . . 3 . 1 . . Weapon 7 | . 1 . . . . . . . . . . . 3 . 1 1 1 Highest Loss Streak 9 | . 1 . . . . . 1 1 2 . . . 9 . 4 4 1 To Critical Strikes 1 | . . . . . . . . . . . . . . . . 1 . Average Backups 5 | 4 6 6 5 6 7 7 7 6 5 4 5 5 4 5 4 5 3 Power 1 | . 1 1 3 4 4 4 2 1 . . . . . 1 . 1 . Propulsion . | 2 4 4 . . 1 2 1 . . 1 2 2 1 1 . . . Utility . | . . . . . . . . . 1 . . . . . . . . Weapon 2 | . 1 1 1 2 1 1 2 3 2 2 2 2 1 2 2 3 1 Tool/Special . | . . . . . . . . . . . . . . . . . . Unused Backups 13 | . . . 4 . 1 . 2 2 . 1 . . . . 2 1 . Power 6 | . . . . . 1 . 2 1 . . . . . . 1 1 . Propulsion 4 | . . . 4 . . . . . . . . . . . . . . Utility . | . . . . . . . . . . . . . . . . . . Weapon 1 | . . . . . . . . 1 . . . . . . . . . Tool/Special 2 | . . . . . . . . . . 1 . . . . 1 . . Average Slot Usage (%) 81 | . 99 100 100 100 91 84 86 82 81 82 91 84 74 61 62 73 5 Engine 2 | . 14 14 14 14 1 . . . . . . . . . . . . Core 4 | . . . . . 7 7 7 6 10 5 10 10 7 4 1 . . Reactor 2 | . . . . . . . . . . 4 . . . 4 7 11 . Treads 2 | . . . . . . . . . . . . . . . 9 15 . Leg 6 | . . . . . 22 23 20 10 . . . . . . . . . Wheel 5 | . 28 28 28 28 2 . . . . . . . . . . . . Flight 9 | . . . . . . . . 12 28 29 34 31 29 23 8 . . Device 15 | . 14 14 14 14 16 15 19 13 5 11 18 21 19 23 15 26 . Storage 4 | . 14 14 14 14 9 7 7 3 . . . . . . . 1 . Processor 7 | . . . . . 8 7 7 11 17 17 12 10 8 4 4 3 . Hackware 2 | . . . . . . . . 6 10 5 2 . . . . . . Energy Gun 7 | . 27 28 18 14 18 15 . . . 5 1 . . . 8 . . Energy Cannon 3 | . . . 9 14 1 . . . . . 7 10 5 . . 15 1 Ballistic Gun 1 | . . . . . . . 14 4 . . . . . . . . . Ballistic Cannon 1 | . . . . . . . 3 3 . . . . . . 2 . 2 Launcher 1 | . . . . . 2 7 2 6 . . . . 1 . . . . Peak Build Rating 166 | 7 7 7 17 17 36 31 50 63 74 93 92 92 95 80 156 166 57 Average Rating 59 | 4 6 7 14 17 29 31 42 52 68 77 85 86 77 80 108 145 16 On Entrance 47 | . 7 6 7 17 17 31 31 43 63 72 77 86 86 80 80 156 3 Avg Prop Armor Cover (%) 10 | . . . . . 2 . . . . . . . 22 . 11 4 . Naked Turns 171 | . . . . . . . . . . . . . . . . 85 86 Heaviest Build 187 | 14 15 14 23 23 27 24 40 40 29 38 37 37 37 28 95 187 46 Greatest Support 267 | 26 26 26 26 26 54 48 48 54 31 41 39 37 37 31 267 267 75 Greatest Overweight (x) 7 | 2 . . . . 1 . 1 5 . . . . 1 . 3 1 7 Average Overweight (x) . | . . . . . . . . . . . . . . . . . . Largest Inventory Capacity 25 | 8 8 8 8 8 8 8 8 8 5 5 5 5 5 5 5 25 5 Average Capacity 7 | 6 8 8 8 8 8 8 8 6 5 5 5 5 5 5 5 10 5 Most Carried 8 | 6 8 6 7 6 8 7 8 8 5 5 5 5 5 5 5 6 5 Average Carried 5 | 4 6 6 5 6 7 7 7 6 4 4 4 5 4 5 4 5 3 Final Capacity 8 | 8 8 8 8 8 8 8 8 5 5 5 5 5 5 5 5 5 5 Final Carried 8 | 6 7 6 6 6 7 7 8 5 5 5 5 5 5 5 5 5 1 Class Distribution -------------------- 33% | Mutant 15% | Hacker-Sprinter 12% | Scavenger-Skirmisher 11% | Tank 9% | Scout 8% | Skirmisher Dominant Class ---------------- Mutant | -10/Materials Mutant | -10/Mines Mutant | -10/Exiles Mutant | -9/Mines Mutant | -8/Materials Mutant | -7/Factory Tank | -7/DSF Hacker-Sprinter | -6/Factory Hacker-Sprinter | -5/Factory Scout | -5/Waste Scout | -5/Factory Scout | -4/Factory Infiltrator-Sprinter | -4/Extension Infiltrator-Sprinter | -3/Research Scavenger-Skirmisher | -3/DSF Scavenger-Skirmisher | -2/Research Mutant | -2/Quarantine Resources | -11 -10 -10 -10 -9 -8 -7 -7 -6 -5 -5 -5 -4 -4 -3 -3 -2 -2 ----------- Run | Yrd Mat Min Exi Min Mat Fac DSF Fac Fac Was Fac Fac Ext Res DSF Res Qua Matter Collected 2383 | 90 147 . . 62 243 . 327 266 . 248 80 . 109 . 689 122 . Remotely . | . . . . . . . . . . . . . . . . . . Salvage Created 4797 | 52 300 . . 150 391 . 802 398 29 . 22 118 264 . 827 1412 32 Parts 218 | 5 14 . . 14 17 . 36 27 1 . . 3 3 . 39 55 4 Haulers Intercepted 4 | . 1 . . . 1 . 1 . . . . . 1 . . . . Recyclers Shooed 3 | 1 . . . . . . . . . . . . 1 . . 1 . Parts Field Recycled . | . . . . . . . . . . . . . . . . . . Retrieved Matter . | . . . . . . . . . . . . . . . . . . Parts Self-Destructed . | . . . . . . . . . . . . . . . . . . Prevented . | . . . . . . . . . . . . . . . . . . Parts Restored . | . . . . . . . . . . . . . . . . . . Kills | -11 -10 -10 -10 -9 -8 -7 -7 -6 -5 -5 -5 -4 -4 -3 -3 -2 -2 ------- Run | Yrd Mat Min Exi Min Mat Fac DSF Fac Fac Was Fac Fac Ext Res DSF Res Qua Combat Hostiles Destroyed 76 | . 8 . . 7 7 . 12 11 . . . . 2 . 12 17 . Melee 4 | . . . . . . . . 4 . . . . . . . . . Guns 22 | . 8 . . . 2 . 4 1 . . . . . . 7 . . Cannons 18 | . . . . . . . 2 1 . . . . . . 4 11 . AOE 26 | . . . . 7 5 . 6 5 . . . . 2 . . 1 . Classes Destroyed 16 | 1 4 . . 1 3 . 4 2 . . . . . . 1 . . Worker 5 | . . . . 1 . . . 1 . . . . . . . 3 . Builder 1 | . . . . . . . . 1 . . . . . . . . . Tunneler 3 | 3 . . . . . . . . . . . . . . . . . Hauler 4 | . 1 . . . 1 . 1 . . . . . 1 . . . . Recycler 2 | . . . . . 1 . . . . . . . 1 . . . . Operator 2 | . . . . . . . . 1 . . . . . . . . 1 Watcher 11 | . 2 . . . 2 . . 1 1 . 1 3 . . . 1 . Swarmer 19 | . 5 . . 7 3 . . 4 . . . . . . . . . Cutter 3 | . . . . . . . . . . . . . . . 3 . . Grunt 22 | . 3 . . . . . 5 3 . . . . . . 4 7 . Brawler 2 | . . . . . . . 1 . . . . . . . . 1 . Sentry 5 | . . . . . 3 . . 1 . . . . . . . 1 . Specialist 5 | . . . . . . . 4 . . . . . . . 1 . . Hunter 8 | . . . . . 1 . . . . . . . 2 . 2 3 . Programmer 10 | . . . . . . . 1 3 . . . . . . 1 5 . Heavy 2 | . . . . . . . 1 . . . . . . . 1 . . Best Kill Streak 11 | 2 4 . . 4 3 . 8 5 1 . 1 3 2 . 4 11 1 Combat Bots Only 8 | . 4 . . 4 3 . 8 4 . . . . 2 . 4 8 . Max Kills in Single Turn 5 | 1 1 . . 4 1 . 4 4 1 . 1 1 1 . 2 5 1 Gunslinging 1 | . . . . . . . . . . . . . . . 1 . . Exploded 4 | . . . . 4 1 . 4 2 . . . . 1 . . 1 . Melee 1 | . . . . . . . . 1 . . . . . . . . . Uniques/NPCs Destroyed . | . . . . . . . . . . . . . . . . . . Combat | -11 -10 -10 -10 -9 -8 -7 -7 -6 -5 -5 -5 -4 -4 -3 -3 -2 -2 -------- Run | Yrd Mat Min Exi Min Mat Fac DSF Fac Fac Was Fac Fac Ext Res DSF Res Qua Hostile Shots Fired 736 | . 39 . . 2 40 . 51 48 5 . . . 103 . 138 210 100 Missed 245 | . 6 . . 1 18 . 20 19 2 . . . 41 . 40 58 40 Hits 491 | . 33 . . 1 22 . 31 29 3 . . . 62 . 98 152 60 Melee 4 | . . . . . . . . . . . . . . . 2 . 2 Projectile 487 | . 33 . . 1 22 . 31 29 3 . . . 62 . 96 152 58 AOE 3 | . . . . . . . . . . . . . . . 2 . 1 Critical Strikes 26 | . . . . . . . 3 1 1 . . . 2 . 6 6 7 Part Disruptions 1 | . . . . . . . . . . . . . . . 1 . . Damage Taken 8311 | . 278 . . 6 161 . 578 340 49 . . 34 1093 . 1763 2784 1225 Core 2256 | . 76 . . . 17 . 113 30 16 . . . 218 . 331 533 922 Absorbed by Shields 276 | . . . . . 66 . 157 53 . . . . . . . . . Ignored by Resistances 2257 | . 87 . . 2 66 . 177 110 14 . . 9 295 . 483 684 330 Regen/Repaired (Parts) 44 | . . . . . . . . . . 33 11 . . . . . . Core Remaining (%) 87 | 100 . . . 69 96 . 83 96 . . 98 . 81 . 74 . . Volleys Fired 196 | 7 25 . . 3 43 . 19 11 . . 3 4 21 . 25 21 14 Largest 4 | 2 2 . . 2 3 . 3 3 . . 2 2 2 . 3 4 3 Hottest 473 | 90 90 . . 110 120 . 116 111 . . 162 162 162 . 360 473 177 Shots Fired 445 | 14 49 . . 6 98 . 52 25 . . 4 8 25 . 65 79 20 Gun 245 | 14 46 . . 3 85 . 38 11 . . 2 . . . 45 . 1 Cannon 162 | . . . . 3 1 . 10 8 . . 2 8 12 . 20 79 19 Launcher 38 | . 3 . . . 12 . 4 6 . . . . 13 . . . . Special . | . . . . . . . . . . . . . . . . . . Kinetic 98 | . . . . . . . 47 19 . . . . . . 16 . 16 Thermal 283 | 14 46 . . 3 85 . . . . . 2 . 4 . 49 76 4 Explosive 38 | . 3 . . . 12 . 4 6 . . . . 13 . . . . Electromagnetic 26 | . . . . 3 1 . 1 . . . 2 8 8 . . 3 . Robot Hit Streak 34 | 8 21 . . . 20 . 21 9 . . 1 2 11 . 22 34 4 Robot Miss Streak 6 | 1 1 . . . 6 . 4 5 . . 1 1 1 . 1 5 1 Penetration Max . | . . . . . . . . . . . . . . . . . . Secondary Targets 3 | . 1 . . . . . 1 . . . . . . . 1 . . Max Gunslinging Chain 1 | . 1 . . . . . 1 . . . . . . . 1 . . Shots Hit Robots 305 | 10 39 . . . 58 . 41 30 1 . 1 4 20 . 53 44 4 Core Hits 192 | 3 18 . . 7 18 . 48 32 . . 1 3 14 . 21 26 1 Critical Kills 6 | . . . . . . . . . . . . . . . 4 1 1 Critical Parts Destroyed 3 | . . . . . . . . . . . . . . . 3 . . Critical Strikes 16 | . 2 . . . 2 . . 3 . . . . . . 7 1 1 Burn 4 | . 2 . . . 2 . . . . . . . . . . . . Meltdown 1 | . . . . . . . . . . . . . . . . 1 . Destroy 8 | . . . . . . . . . . . . . . . 7 . 1 Blast 1 | . . . . . . . . 1 . . . . . . . . . Sever 2 | . . . . . . . . 2 . . . . . . . . . Melee Attacks 19 | . . . . . . . . 16 2 . . . . . 1 . . Impact . | . . . . . . . . . . . . . . . . . . Slashing 18 | . . . . . . . . 16 2 . . . . . . . . Piercing . | . . . . . . . . . . . . . . . . . . Sneak Attacks 3 | . . . . . . . . 3 . . . . . . . . . Combat Hostiles 2 | . . . . . . . . 2 . . . . . . . . . Follow-up Attacks . | . . . . . . . . . . . . . . . . . . Damage Inflicted 12230 | 117 510 . . 346 1075 . 1747 1649 62 . 27 228 1558 . 1510 3304 97 Guns 3242 | 117 445 . . . 597 . 675 233 . . 27 . . . 1116 . 32 Cannons 3404 | . . . . . . . 191 179 . . . 228 293 . 394 2054 65 Explosions 4816 | . 65 . . 346 478 . 881 531 . . . . 1265 . . 1250 . Melee 768 | . . . . . . . . 706 62 . . . . . . . . Ramming . | . . . . . . . . . . . . . . . . . . Kinetic 1538 | . . . . . . . 860 412 . . . . . . 241 . 25 Thermal 4819 | 117 445 . . . 597 . . 141 . . 27 . 108 . 1269 2043 72 Explosive 2345 | . 65 . . . 272 . 353 390 . . . . 1265 . . . . Electromagnetic 2760 | . . . . 346 206 . 534 . . . . 228 185 . . 1261 . Impact . | . . . . . . . . . . . . . . . . . . Slashing 768 | . . . . . . . . 706 62 . . . . . . . . Piercing . | . . . . . . . . . . . . . . . . . . Highest Corruption 17 | . . . . 6 3 . 3 1 1 1 1 . . 1 9 13 17 Average Corruption 4 | . . . . 3 3 . 3 1 1 1 1 . . 1 6 4 13 Corruption Purged . | . . . . . . . . . . . . . . . . . . Corruption Blocked . | . . . . . . . . . . . . . . . . . . Effects 73 | . . . . 5 18 . 2 . 1 1 . . . . 26 10 10 Message Errors 16 | . . . . . 5 . . . . 1 . . . . 3 5 2 Matter Fused 14 | . . . . 3 2 . 1 . . . . . . . 5 2 1 Heat Flow Errors 9 | . . . . 1 1 . 1 . 1 . . . . . 4 . 1 Energy Discharges 13 | . . . . 1 3 . . . . . . . . . 6 1 2 Parts Rejected 1 | . . . . . 1 . . . . . . . . . . . . Data Loss (minor) 8 | . . . . . 2 . . . . . . . . . 3 1 2 Data Loss (major) 3 | . . . . . 1 . . . . . . . . . . . 2 Misfires 4 | . . . . . 2 . . . . . . . . . 2 . . Misdirections 1 | . . . . . . . . . . . . . . . . 1 . Weapon Failures 4 | . . . . . 1 . . . . . . . . . 3 . . Overload Shots . | . . . . . . . . . . . . . . . . . . Overflow Damage 540 | . . . . 17 51 . 7 149 27 . . 3 95 . 74 117 . Projectiles 122 | . . . . . . . . . . . . 3 . . 74 45 . Explosions 242 | . . . . 17 51 . 7 . . . . . 95 . . 72 . Melee 176 | . . . . . . . . 149 27 . . . . . . . . Knockbacks 7 | . . . . . . . 1 3 . . . . . . 2 . 1 Impact . | . . . . . . . . . . . . . . . . . . Kinetic 7 | . . . . . . . 1 3 . . . . . . 2 . 1 Secondary . | . . . . . . . . . . . . . . . . . . Self-Inflicted Damage 132 | . 18 . . . 38 . . 76 . . . . . . . . . Shots 4 | . 1 . . . 2 . . 1 . . . . . . . . . Rammed 1 | . . . . . . . . . . . . . . . . 1 . Targets Rammed 1 | . . . . . . . . . . . . . . . . 1 . Kicked . | . . . . . . . . . . . . . . . . . . Crushed . | . . . . . . . . . . . . . . . . . . Highest Temperature 888 | 150 324 . . 48 250 . 802 48 . 347 87 96 105 . 419 888 151 Average Temperature 128 | 65 98 . . 26 50 . 256 18 . 171 33 41 47 . 142 279 112 Received Heat Transfer 1262 | . 132 . . . 24 . 49 120 . . . . 72 . 105 616 144 Effects 40 | . 1 . . . . . 14 . . 2 . . . . 1 22 . Shutdowns 15 | . . . . . . . 3 . . 1 . . . . 1 10 . Energy Bleed 6 | . 1 . . . . . 1 . . . . . . . . 4 . Interference 6 | . . . . . . . 3 . . . . . . . . 3 . Matter Decay 1 | . . . . . . . 1 . . . . . . . . . . Short Circuit 2 | . . . . . . . 1 . . . . . . . . 1 . Damage (minor) 1 | . . . . . . . . . . 1 . . . . . . . Damage (major) 7 | . . . . . . . 4 . . . . . . . . 3 . Damage (core) 2 | . . . . . . . 1 . . . . . . . . 1 . Siege Activations . | . . . . . . . . . . . . . . . . . . Martial Activations . | . . . . . . . . . . . . . . . . . . Shielding Activations . | . . . . . . . . . . . . . . . . . . Robots Disrupted . | . . . . . . . . . . . . . . . . . . Combat Hostiles . | . . . . . . . . . . . . . . . . . . Robots Corrupted 4 | . . . . . . . . . . . . . . . . 4 . Combat Hostiles 4 | . . . . . . . . . . . . . . . . 4 . Parts Fried 19 | . . . . . 1 . 1 . . . . 2 2 . . 13 . Impact Corruptions . | . . . . . . . . . . . . . . . . . . Robots Melted 2 | . . . . . . . . . . . . . . . 1 1 . Combat Hostiles 2 | . . . . . . . . . . . . . . . 1 1 . Parts Melted 15 | 1 2 . . . 4 . . . . . . . . . 5 3 . Heat Transferred 6850 | 310 1326 . . . 1723 . . 50 . . 37 . 111 . 1517 1702 74 Parts Sabotaged . | . . . . . . . . . . . . . . . . . . Parts Stolen . | . . . . . . . . . . . . . . . . . . Parts Stripped . | . . . . . . . . . . . . . . . . . . Power Chain Reactions . | . . . . . . . . . . . . . . . . . . Latent Energy Used 1172 | . . . . 303 200 . 166 . . . . . . . . 503 . LE Corruption 20 | . . . . 6 3 . 3 . . . . . . . . 8 . Alert | -11 -10 -10 -10 -9 -8 -7 -7 -6 -5 -5 -5 -4 -4 -3 -3 -2 -2 ------- Run | Yrd Mat Min Exi Min Mat Fac DSF Fac Fac Was Fac Fac Ext Res DSF Res Qua Maximum Alert Level 5 | . . . . . 1 . 2 . . . 3 1 1 . 1 1 5 Low Security (%) 86 | 100 100 100 . 100 99 100 59 100 100 100 14 . 97 100 83 83 . Level 1 5 | . . . . . . . 13 . . . 12 100 2 . 16 16 . Level 2 2 | . . . . . . . 26 . . . 41 . . . . . . Level 3 1 | . . . . . . . . . . . 31 . . . . . . Level 4 . | . . . . . . . . . . . . . . . . . . Level 5 . | . . . . . . . . . . . . . . . . . . High Security . | . . . . . . . . . . . . . . . . . . Max Security 4 | . . . . . . . . . . . . . . . . . 99 Sterilizations 2 | . . . . . . . 1 . . . . . . . 1 . . Peak Influence 1742 | 10 154 26 . 100 201 65 410 186 33 . 792 360 204 42 226 328 1742 Initial 325 | . . 26 . . 29 65 39 186 27 . . 325 151 42 30 110 155 Average 152 | 2 98 10 . 27 34 65 202 73 3 . 523 336 146 42 103 94 1647 Influence Increases 4198 | 15 262 . . 182 430 . 411 545 45 . 1022 54 173 4 296 607 152 Destroy 0b10 Robot/C 2040 | . 160 . . 140 140 . 240 220 . . 520 . 40 . 240 340 . Destroy 0b10 Robot/NC 165 | 15 15 . . 5 20 . 20 20 5 . 15 15 10 . . 20 5 Destroy Leader 426 | . 36 . . 20 56 . 40 72 2 . 92 6 10 . 30 62 . Allied During Kill 276 | . . . . . . . . . . . 276 . . . . . . Successful Hack 91 | . 7 . . . 9 . . 18 6 . 18 24 . 4 . 5 . Disable Machine 117 | . 9 . . . 36 . 9 27 . . . 9 . . 9 9 9 Destroy Structure 513 | . 20 . . 17 79 . 42 83 2 . 86 . 68 . 2 111 3 Partial Spotted 90 | . 15 . . . . . . 15 30 . 15 . 15 . . . . Lose Combat Pursuer 480 | . . . . . 90 . 60 90 . . . . 30 . 15 60 135 Influence Decreases 3901 | 15 180 82 . 92 353 102 66 888 112 . 250 467 438 52 116 515 173 Entered New Map 1511 | . . 56 . . 61 102 26 224 40 . . 447 208 52 16 116 163 Time Decay 1910 | 15 170 26 . 92 292 . . 654 52 . 110 20 130 . . 349 . Lost Part 340 | . 10 . . . . . 40 10 20 . . . 100 . 100 50 10 Lost Ally 140 | . . . . . . . . . . . 140 . . . . . . Squads Dispatched 47 | . 3 . . . 2 . 2 7 3 . 3 3 1 2 1 8 12 Investigation 13 | . 3 . . . . . . 1 1 . 2 3 . 2 . 1 . Extermination 7 | . . . . . . . . 4 1 . . . . . . 2 . Reinforcement 12 | . . . . . 2 . 2 2 1 . 1 . 1 . 1 2 . Assault 13 | . . . . . . . . . . . . . . . . 1 12 Garrison 2 | . . . . . . . . . . . . . . . . 2 . Intercept . | . . . . . . . . . . . . . . . . . . Searches Triggered . | . . . . . . . . . . . . . . . . . . Construction Impeded 3 | . . . . . 1 . . . . . 1 . 1 . . . . Haulers Reinforced 1 | . . . . . . . . 1 . . . . . . . . . Active Scanning Responses . | . . . . . . . . . . . . . . . . . . Cargo Convoy Interrupts . | . . . . . . . . . . . . . . . . . . Stealth | -11 -10 -10 -10 -9 -8 -7 -7 -6 -5 -5 -5 -4 -4 -3 -3 -2 -2 --------- Run | Yrd Mat Min Exi Min Mat Fac DSF Fac Fac Was Fac Fac Ext Res DSF Res Qua Distress Signals 13 | . 1 . . . 3 . . 2 1 . 1 . 1 . . 2 2 Communications Jammed 2 | . . . . . . . . . . . . . . . 2 . . Distress Signals . | . . . . . . . . . . . . . . . . . . Times Spotted 239 | . 20 . . 3 23 . 19 25 12 . 6 2 11 . 17 48 53 Peak Tracking Total 29 | . 5 . . 4 5 . 6 4 5 . 3 1 8 . 4 9 29 Tactical Retreats 33 | . . . . . 5 . 4 5 1 . . . 2 . 2 10 4 ECM-based Alert Blocks 35 | . . . . . . . . 6 5 . . . 5 . 1 18 . Traps | -11 -10 -10 -10 -9 -8 -7 -7 -6 -5 -5 -5 -4 -4 -3 -3 -2 -2 ------- Run | Yrd Mat Min Exi Min Mat Fac DSF Fac Fac Was Fac Fac Ext Res DSF Res Qua Traps Triggered 6 | . . . . . . . 1 . 1 . . . 1 . 1 2 . Indirectly 1 | . . . . . . . . . . . . . . . . 1 . Trap Hack Attempts . | . . . . . . . . . . . . . . . . . . Triggered . | . . . . . . . . . . . . . . . . . . Disarmed . | . . . . . . . . . . . . . . . . . . Reprogrammed . | . . . . . . . . . . . . . . . . . . Reused . | . . . . . . . . . . . . . . . . . . Traps Extracted . | . . . . . . . . . . . . . . . . . . Installed . | . . . . . . . . . . . . . . . . . . Triggered . | . . . . . . . . . . . . . . . . . . Machines | -11 -10 -10 -10 -9 -8 -7 -7 -6 -5 -5 -5 -4 -4 -3 -3 -2 -2 ---------- Run | Yrd Mat Min Exi Min Mat Fac DSF Fac Fac Was Fac Fac Ext Res DSF Res Qua Machines Disabled 15 | . 1 . . . 4 . 1 3 . . . 1 2 . 1 1 1 Max in Single Turn 2 | . 1 . . . 2 . 1 2 . . . . 1 . 1 1 1 Garrison Access 1 | . . . . . . . . . . . . . . . . 1 . Machines Repaired . | . . . . . . . . . . . . . . . . . . Machines Dismantled . | . . . . . . . . . . . . . . . . . . Machines Sabotaged . | . . . . . . . . . . . . . . . . . . Overloaded Fab Kills . | . . . . . . . . . . . . . . . . . . Hacking | -11 -10 -10 -10 -9 -8 -7 -7 -6 -5 -5 -5 -4 -4 -3 -3 -2 -2 --------- Run | Yrd Mat Min Exi Min Mat Fac DSF Fac Fac Was Fac Fac Ext Res DSF Res Qua Machines Accessed 40 | . 4 1 4 . 3 1 . 7 3 . 4 4 . 2 . 7 . Terminals 24 | . 3 . . . 2 1 . 4 2 . 2 3 . 1 . 6 . Fabricators 2 | . . . . . . . . . . . 1 . . . . 1 . Repair Stations 2 | . . . . . . . . . . . 1 1 . . . . . Recycling Units 3 | . 1 . . . . . . 2 . . . . . . . . . Scanalyzers 3 | . . . . . 1 . . 1 . . . . . 1 . . . Garrison Access 1 | . . . . . . . . . 1 . . . . . . . . Total Hacks 112 | . 11 1 27 . 5 2 . 18 10 . 9 12 . 6 . 11 . Successful 72 | . 3 1 27 . 4 1 . 15 5 . 4 6 . 1 . 5 . Failed 40 | . 8 . . . 1 1 . 3 5 . 5 6 . 5 . 6 . Catastrophic 9 | . 1 . . . . . . 1 1 . 1 . . . . 5 . Database Lockouts . | . . . . . . . . . . . . . . . . . . Manual 44 | . 6 . 1 . 4 . . 7 7 . 5 8 . . . 6 . Terminals 59 | . 10 . . . 4 2 . 9 7 . 5 9 . 3 . 10 . Fabricators 3 | . . . . . . . . . . . 2 . . . . 1 . Repair Stations 5 | . . . . . . . . . . . 2 3 . . . . . Recycling Units 5 | . 1 . . . . . . 4 . . . . . . . . . Scanalyzers 9 | . . . . . 1 . . 5 . . . . . 3 . . . Garrison Access 3 | . . . . . . . . . 3 . . . . . . . . Terminal Hacks 40 | . . 1 27 . 1 1 . 3 2 . . 1 . 1 . 3 . Record 26 | . . . 26 . . . . . . . . . . . . . . Part Schematic 3 | . . . . . . . . 1 2 . . . . . . . . Prototype ID Bank 1 | . . . . . 1 . . . . . . . . . . . . Open Door 3 | . . 1 . . . . . . . . . 1 . . . 1 . Open DSF 6 | . . . . . . 1 . 2 . . . . . 1 . 2 . Proto ID Catalog 1 | . . . 1 . . . . . . . . . . . . . . Fabricator Hacks 2 | . . . . . . . . . . . 2 . . . . . . Load Schematic 1 | . . . . . . . . . . . 1 . . . . . . Build 1 | . . . . . . . . . . . 1 . . . . . . Repair Station Hacks 2 | . . . . . . . . . . . 1 1 . . . . . Scan Component 2 | . . . . . . . . . . . 1 1 . . . . . Recycling Unit Hacks 5 | . 1 . . . . . . 4 . . . . . . . . . Process 1 | . . . . . . . . 1 . . . . . . . . . Report Inventory 3 | . 1 . . . . . . 2 . . . . . . . . . Retrieve Matter 1 | . . . . . . . . 1 . . . . . . . . . Scanalyzer 6 | . . . . . 1 . . 5 . . . . . . . . . Insert Component 2 | . . . . . . . . 2 . . . . . . . . . Retrieve Study 4 | . . . . . 1 . . 3 . . . . . . . . . Garrison Access Hacks . | . . . . . . . . . . . . . . . . . . Unauthorized Hacks 17 | . 2 . . . 2 . . 3 3 . 1 4 . . . 2 . Terminals 17 | . 2 . . . 2 . . 3 3 . 1 4 . . . 2 . Track 5 | . . . . . . . . 1 1 . . 2 . . . 1 . Botnet 12 | . 2 . . . 2 . . 2 2 . 1 2 . . . 1 . Fabricators . | . . . . . . . . . . . . . . . . . . Repair Stations . | . . . . . . . . . . . . . . . . . . Recycling Units . | . . . . . . . . . . . . . . . . . . Scanalyzers . | . . . . . . . . . . . . . . . . . . Garrison Access . | . . . . . . . . . . . . . . . . . . Data Cores Recovered 1 | . . . . . . . . . . . . . . . . . 1 Used . | . . . . . . . . . . . . . . . . . . Hacking Detections 26 | . 4 . . . 2 1 . 4 2 . 4 3 . 2 . 4 . Full Trace Events 13 | . 3 . . . . . . 1 1 . 2 3 . 2 . 1 . Feedback Events 3 | . . . . . . . . 1 1 . . . . 1 . . . Corruption 2 | . . . . . . . . 1 . . . . . 1 . . . Hackware Fried 1 | . . . . . . . . . 1 . . . . . . . . Feedback Blocked . | . . . . . . . . . . . . . . . . . . Robot Schematics Acquired . | . . . . . . . . . . . . . . . . . . Robots Built . | . . . . . . . . . . . . . . . . . . Authchips . | . . . . . . . . . . . . . . . . . . Time . | . . . . . . . . . . . . . . . . . . Total Robot Build Rating . | . . . . . . . . . . . . . . . . . . Part Schematics Acquired 3 | . . . . . . . . 1 2 . . . . . . . . Parts Built 1 | . . . . . . . . . . . 1 . . . . . . Authchips . | . . . . . . . . . . . . . . . . . . Time 76 | . . . . . . . . . . . 76 . . . . . . Total Part Build Rating 5 | . . . . . . . . . . . 5 . . . . . . Part Studies Acquired 4 | . . . . . 1 . . 3 . . . . . . . . . Parts Repaired . | . . . . . . . . . . . . . . . . . . Time . | . . . . . . . . . . . . . . . . . . Parts Recycled . | . . . . . . . . . . . . . . . . . . Recycled Matter 9 | . . . . . . . . 9 . . . . . . . . . Retrieved Matter 9 | . . . . . . . . 9 . . . . . . . . . Retrieved Components . | . . . . . . . . . . . . . . . . . . Parts Scanalyzed . | . . . . . . . . . . . . . . . . . . Part Schematics Acquired . | . . . . . . . . . . . . . . . . . . Parts Damaged . | . . . . . . . . . . . . . . . . . . Bothacking | -11 -10 -10 -10 -9 -8 -7 -7 -6 -5 -5 -5 -4 -4 -3 -3 -2 -2 ------------ Run | Yrd Mat Min Exi Min Mat Fac DSF Fac Fac Was Fac Fac Ext Res DSF Res Qua Used RIF Installer . | . . . . . . . . . . . . . . . . . . Robots Hacked . | . . . . . . . . . . . . . . . . . . Non-combat . | . . . . . . . . . . . . . . . . . . Combat . | . . . . . . . . . . . . . . . . . . Robot Hacks Applied . | . . . . . . . . . . . . . . . . . . Relay Couplers Released 2 | . . . . . . . . . . . . . . . . 2 . Machine Destruction 2 | . . . . . . . . . . . . . . . . 2 . Fabnet Peak Effective % . | . . . . . . . . . . . . . . . . . . Robots Rewired . | . . . . . . . . . . . . . . . . . . Allies Hacked . | . . . . . . . . . . . . . . . . . . Hacks Repelled . | . . . . . . . . . . . . . . . . . . Allies | -11 -10 -10 -10 -9 -8 -7 -7 -6 -5 -5 -5 -4 -4 -3 -3 -2 -2 -------- Run | Yrd Mat Min Exi Min Mat Fac DSF Fac Fac Was Fac Fac Ext Res DSF Res Qua Total Allies 20 | . . . . . . . . . . 20 . . . . . . . Largest Group 20 | . . . . . . . . . . 20 20 1 . . . . . Highest-Rated Group 674 | . . . . . . . . . . 674 674 25 . . . . . Highest-Rated Ally 50 | . . . . . . . . . . 50 50 25 . . . . . Initial Warlord ECA Mod 15 | . . . . . . . . 9 8 8 8 7 7 6 6 15 15 Total Orders . | . . . . . . . . . . . . . . . . . . Ally Attacks 158 | . . . . . . . . . . . 155 3 . . . . . Total Damage 3636 | . . . . . . . . . . . 3602 34 . . . . . Kills 32 | . . . . . . . . . . . 32 . . . . . . Allies Corrupted . | . . . . . . . . . . . . . . . . . . Allies Melted . | . . . . . . . . . . . . . . . . . . Intel | -11 -10 -10 -10 -9 -8 -7 -7 -6 -5 -5 -5 -4 -4 -3 -3 -2 -2 ------- Run | Yrd Mat Min Exi Min Mat Fac DSF Fac Fac Was Fac Fac Ext Res DSF Res Qua Active Infowar (turns) 6712 | 5 389 91 539 251 984 5 348 1400 520 371 239 50 269 9 657 585 . Optics 4299 | . . . . . 952 5 337 692 520 371 239 50 269 9 657 198 . Sensors 759 | . . . . . . . . . 4 371 239 50 95 . . . . Seismic 3608 | 5 389 91 539 251 984 5 348 996 . . . . . . . . . Cloaking 103 | . . . . . . . . . . . . . 103 . . . . Jamming 484 | . . . . . . . . . . . . . 8 9 467 . . ECM 1426 | . . . . . . . . 39 496 14 . . 7 9 276 585 . Robot Analysis Total . | . . . . . . . . . . . . . . . . . . Derelict Logs Recovered 2 | . . . . 2 . . . . . . . . . . . . . Drone Launches . | . . . . . . . . . . . . . . . . . . Drone Recoveries . | . . . . . . . . . . . . . . . . . . Exploration | -11 -10 -10 -10 -9 -8 -7 -7 -6 -5 -5 -5 -4 -4 -3 -3 -2 -2 ------------- Run | Yrd Mat Min Exi Min Mat Fac DSF Fac Fac Was Fac Fac Ext Res DSF Res Qua Turns Passed 7234 | 86 389 91 539 251 984 5 348 1400 520 371 239 50 269 9 657 756 270 Spaces Moved 6812 | 56 262 93 587 249 631 5 195 1413 497 442 479 159 636 35 407 438 228 Core 388 | 17 . . . . . . . . . . . . . . . 171 200 Treads 462 | . . . . . . . . . . . . . . . 168 267 27 Legs 1038 | . . . . . 568 5 195 270 . . . . . . . . . Wheels 1293 | 39 262 93 587 249 63 . . . . . . . . . . . . Hover 61 | . . . . . . . . . . . . . . . 60 . 1 Flight 3570 | . . . . . . . . 1143 497 442 479 159 636 35 179 . . Fastest Speed 14 | 50 90 90 90 90 90 105 105 26 25 22 20 20 20 25 14 50 50 Average Speed 63 | 86 90 90 90 90 105 105 125 46 25 23 22 20 22 25 99 118 92 Slowest Speed 445 | 150 90 90 90 90 190 105 190 445 26 25 25 20 115 25 240 250 400 Overloaded Moves 31 | . . . . . . . . . . . . . . . 31 . . Propulsion Burnouts . | . . . . . . . . . . . . . . . . . . Robots Hopped 26 | . . . . . . . . 15 . 2 2 . 6 . 1 . . Potential Cave-ins . | . . . . . . . . . . . . . . . . . . Cave-ins Triggered . | . . . . . . . . . . . . . . . . . . Exploration Rate (%) 40 | 3 53 30 92 49 27 . 97 18 9 96 13 6 60 2 97 17 22 Regions Visited 17 Branch Regions 5 Pre-discovered Areas 1 | . . . . 1 . . . . . . . . . . . . . Known Exits Taken 3 | . . . . . . 1 . . . . . . . 1 . 1 . Unknown Exits Taken 10 | 1 1 1 1 1 1 . . 1 . . 1 1 1 . . . . Scrap Searched . | . . . . . . . . . . . . . . . . . . Spaces Dug 41 | . . . . . 34 . . 5 1 . . . . . . . 1 Terrain Destroyed 392 | . 18 . . 18 88 . 47 117 1 . . . 63 . 3 36 1 Melee 6 | . . . . . . . . 5 1 . . . . . . . . Projectile 26 | . . . . . . . . . . . . . . . 3 22 1 AOE 360 | . 18 . . 18 88 . 47 112 . . . . 63 . . 14 . Terrain Rammed . | . . . . . . . . . . . . . . . . . . Walls Destroyed . | . . . . . . . . . . . . . . . . . . Machines Disabled . | . . . . . . . . . . . . . . . . . . Actions | -11 -10 -10 -10 -9 -8 -7 -7 -6 -5 -5 -5 -4 -4 -3 -3 -2 -2 --------- Run | Yrd Mat Min Exi Min Mat Fac DSF Fac Fac Was Fac Fac Ext Res DSF Res Qua Total 9259 | 75 367 100 600 269 856 4 255 2085 887 706 604 168 724 34 609 647 269 Wait 1949 | . 76 7 . 18 167 . 18 626 383 251 98 4 41 . 79 177 4 Move 6745 | 55 261 92 586 248 630 4 194 1382 497 437 474 158 624 34 404 437 228 Hop 25 | . . . . . . . . 15 . 2 2 . 5 . 1 . . Pick Up 55 | 6 1 . 6 . 4 . 5 5 . 4 3 . 3 . 17 . 1 Fast Attach 70 | 7 . . . . 3 . 3 10 3 3 5 1 7 . 20 3 5 Attach 42 | . 2 1 . . 3 . 3 3 1 1 2 . 3 . 12 2 9 Detach 22 | . 2 . . . 1 . 1 2 1 . . . 2 . 4 4 5 Swap 27 | . . . 1 . 4 . 4 . . 1 8 . . . 8 1 . Drop 70 | . . . 6 . 1 . 3 15 . 7 9 1 3 . 21 1 3 Fire 196 | 7 25 . . 3 43 . 19 11 . . 3 4 21 . 25 21 14 Melee 19 | . . . . . . . . 16 2 . . . . . 1 . . Ram . | . . . . . . . . . . . . . . . . . . Kick . | . . . . . . . . . . . . . . . . . . Crush 1 | . . . . . . . . . . . . . . . . 1 . Escape Stasis 35 | . . . . . . . 5 . . . . . 15 . 15 . . Rewire 3 | . . . 1 . . . . . . . . . . . 2 . . Trap . | . . . . . . . . . . . . . . . . . . Miscellaneous . | . . . . . . . . . . . . . . . . . . Route ------- -11/Scrapyard -10/Materials (discovered 2 exits: [*Mat] / *Min) -10/Mines (discovered 2 exits: [*Mat] / *Exi) -10/Exiles -9/Mines -8/Materials -7/Factory -7/DSF -6/Factory -5/Factory -5/Waste -5/Factory (discovered 2 exits: *Fac / [*Upp]) -4/Factory (discovered 2 exits: [*Upp] / [*Ext]) -4/Extension (discovered 2 exits: *Res / [*Cet]) -3/Research -3/DSF -2/Research -2/Quarantine History --------- Turn | Location | Event 11 | -11/Scrapyard | Discovered new exit (range 14) 87 | -11/Scrapyard | Entered Materials 261 | -10/Materials | Discovered new exit (range 15) 312 | -10/Materials | Build established: Mutant 390 | -10/Materials | Discovered new exit (range 15) 476 | -10/Materials | Entered Mines 492 | -10/Mines | Discovered new exit (range 8) 541 | -10/Mines | Found the Drone Emporium 564 | -10/Mines | Deemed a non-threat by the Exiles lab entrance 564 | -10/Mines | Discovered new exit (range 5) 567 | -10/Mines | Entered Exiles 607 | -10/Exiles | Met 8R-AWN 621 | -10/Exiles | Met EX-HEX 658 | -10/Exiles | Met EX-BIN 667 | -10/Exiles | Aligned with FarCom system 668 | -10/Exiles | Given EX-Vault access code 712 | -10/Exiles | Opened EX-Vault 720 | -10/Exiles | Found Latent Energy Streamer 746 | -10/Exiles | Warned to stay clear of 0b10 Research branches 773 | -10/Exiles | Met EX-DEC 824 | -10/Exiles | Discovered new exit (range 12) 889 | -10/Exiles | Visited The Gauntlet 1106 | -10/Exiles | Left Exiles lab with Latent Energy Streamer 1106 | -10/Exiles | Entered Mines 1122 | -9/Mines | Learned Materials terminal intel 1132 | -9/Mines | Received a Rocket Launcher from a helpful Derelict 1335 | -9/Mines | Learned location of Zion (-6) 1351 | -9/Mines | Discovered new exit (range 6) 1357 | -9/Mines | Entered Materials 1357 | -8/Materials | Evolved 4 slots: Propulsion x1, Utility x2, Weapon x1 1358 | -8/Materials | Loaded intel: 12 terminal locations 2321 | -8/Materials | Discovered new exit (range 19) 2341 | -8/Materials | Entered Factory 2341 | -7/Factory | Evolved 2 slots: Utility x2 2346 | -7/Factory | Identified exit to DSF 2346 | -7/Factory | Entered DSF 2380 | -7/DSF | Build established: Skirmisher 2395 | -7/DSF | Additional patrols routed to DSF 2515 | -7/DSF | Discovered new exit (range 20) 2577 | -7/DSF | Sterilization system engaged 2596 | -7/DSF | Destroyed 8 combat bots 2597 | -7/DSF | Ambient heat levels rising (+10) 2612 | -7/DSF | Ambient heat levels rising (+10) 2627 | -7/DSF | Ambient heat levels rising (+10) 2642 | -7/DSF | Ambient heat levels rising (+10) 2657 | -7/DSF | Ambient heat levels rising (+10) 2672 | -7/DSF | Ambient heat levels rising (+10) 2687 | -7/DSF | Ambient heat levels rising (+10) 2694 | -7/DSF | Entered Factory 2694 | -6/Factory | Evolved 2 slots: Propulsion x2 2783 | -6/Factory | Build established: Tank 2908 | -6/Factory | Discovered new exit (range 8) 3743 | -6/Factory | Build established: Hacker-Sprinter 4094 | -6/Factory | Entered another Factory area 4094 | -5/Factory | Evolved 2 slots: Power x1, Propulsion x1 4588 | -5/Factory | Hacking Suite fried by hacking feedback 4614 | -5/Factory | Sucked down chute 4614 | -5/Factory | Entered Waste 4615 | -5/Waste | Joined by Warlord forces that had cleared the area 4678 | -5/Waste | Discovered new exit (range 19) 4952 | -5/Waste | Build established: Scout 4985 | -5/Waste | Entered Factory 4985 | -5/Factory | Accompanied by 20 allies 5041 | -5/Factory | Lost 3 allies 5055 | -5/Factory | Discovered new exit (range 15) 5155 | -5/Factory | Lost 6 allies 5200 | -5/Factory | Fabricated Cld. Cesium-ion Thruster? 5202 | -5/Factory | Lost 3 allies 5215 | -5/Factory | Discovered new exit (range 20) 5224 | -5/Factory | Entered another Factory area 5224 | -4/Factory | Accompanied by 1 ally 5224 | -4/Factory | Evolved 2 slots: Utility x2 5226 | -4/Factory | Discovered new exit (range 17) 5230 | -4/Factory | Spotted B-86 Titan 5273 | -4/Factory | Discovered new exit (range 10) 5274 | -4/Factory | Entered Extension 5294 | -4/Extension | Spotted B-86 Titan 5343 | -4/Extension | Disrupted transfer network 5465 | -4/Extension | Spotted B-86 Titan 5506 | -4/Extension | Lost 9 parts (2p2n3u2w) 5510 | -4/Extension | Discovered new exit (range 20) 5510 | -4/Extension | Discovered new exit (range 19) 5543 | -4/Extension | Entered Research 5543 | -3/Research | Evolved 2 slots: Power x1, Propulsion x1 5552 | -3/Research | Identified exit to DSF 5552 | -3/Research | Entered DSF 5594 | -3/DSF | Additional patrols routed to DSF 5689 | -3/DSF | Discovered new exit (range 20) 5730 | -3/DSF | Lost 4 parts (3n1u) 5837 | -3/DSF | Lost 3 parts (2n1w) 6095 | -3/DSF | Sterilization system engaged 6115 | -3/DSF | Ambient heat levels rising (+10) 6130 | -3/DSF | Ambient heat levels rising (+10) 6145 | -3/DSF | Ambient heat levels rising (+10) 6160 | -3/DSF | Ambient heat levels rising (+10) 6175 | -3/DSF | Ambient heat levels rising (+10) 6190 | -3/DSF | Ambient heat levels rising (+10) 6205 | -3/DSF | Ambient heat levels rising (+10) 6209 | -3/DSF | Entered Research 6209 | -2/Research | Evolved 2 slots: Utility x1, Weapon x1 6410 | -2/Research | Build established: Scavenger-Skirmisher 6790 | -2/Research | Garrison activated, responded to threat 6839 | -2/Research | Spotted B-90 Cyclops 6844 | -2/Research | System corruption reached 10% 6880 | -2/Research | Released all parts (14) 6894 | -2/Research | Spotted B-90 Cyclops 6899 | -2/Research | Destroyed 8 combat bots 6910 | -2/Research | Lost 4 parts (1p2n1w) 6962 | -2/Research | Discovered new exit (range 9) 6965 | -2/Research | Identified exit to Quarantine 6965 | -2/Research | Entered Quarantine 6966 | -2/Quarantine | Maximum security lockdown engaged 7016 | -2/Quarantine | Found Alien Artifact 7016 | -2/Quarantine | Identified Phase Armor 7134 | -2/Quarantine | Core integrity fell below 50% 7177 | -2/Quarantine | Build established: Mutant 7207 | -2/Quarantine | Released all parts (6) 7210 | -2/Quarantine | Spotted Striker 7214 | -2/Quarantine | Spotted Investigator 7216 | -2/Quarantine | Core integrity fell below 20% 7235 | -2/Quarantine | Destroyed by G-73 Enforcer with Phase Gun Last Messages --------------- 07210_ Striker unfolds itself. 07210_ H-88 Terminator unfolds itself. 07210_ M-36 Artificer unfolds itself. 07213_ Penetrated by Slug. 07213_ Slug penetrates Wall. 07213_ Penetrated by Slug. 07213_ Vacuum Chamber explodes. 07213_ I-47 Archangel destroyed. 07213_ E-15 Imp destroyed. 07214_ C-45 Heavy ARC bursts open, deploying its payload. 07214_ G-73 Enforcer unfolds itself. 07214_ M-36 Artificer unfolds itself. 07214_ Investigator unfolds itself. 07214_ Investigator: "PRIMARY THREAT IDENTIFIED. CONTAINMENT PROTOCOL APPLICABLE." 07214_ M-36 Artificer repairs H-88 Terminator. 07215_ Emergency Access malfunctions. 07216_ Penetrated by Slug. 07221_ W-44 Eye distress signal alerts nearby ally. 07231_ Knocked back. 07233_ Suspension Chamber breached. Map ----- +----------------------------------------------------+ | ???????# """ #????????????? #????????? | | ???????# """ ###+####??????#" ##????????? | | ???????# """ #???????% #?????????? | | ???????+ ^ #???????"??#?????????? | | ???????# """""" #??????? ????????????? | | ???????# ^ """""" #????????????????????? | | ???????####/### ^"""""" #????????????????????? | | ????????? ??# #????????????????????? | | ????????# ??# """""" #????????????????????? | | ????????# "???# """""" #????????????????????? | | ????????# "???# """""" #????????????????????? | | ????????#?????# ^ #????????????????????? | | ??????????????# #????????????????????? | | ??????????????## [[ #????????????????????? | | ???????????????# ^ [ ####?????????????????? | | ???????????????# ???????????????? | | ???????????????# """ ???????????????? | | ???????????????# " " """ ""?????????????? | | ???????????????# """ """ """????????????? | | ???????????????# """ """????????????? | | ???????????????# """""" ????????????? | | ??????########## """""" " "?????????????? | | ??????? # """""" " "?????????????? | | ??????? """ # ""G"" #????????? | | ??????# """ # +????????? | | ??????# """ ! # gg @ w #????????? | | ??????# """ g g###+########## ??????????? | | ??????# """ l#i # l #???????????????????? | | ??????# """ C# # K %#????????????g??????? | | ??????# """ # #T "#???????????????????? | | ??????# # #""! ""#???????????????????? | | ??????#####+#### #!"" " !#???????????????????? | | ??????????#g#??# #!!"""!!#???????????????????? | | ??????????#c#??# #########???????????????????? | | ??##??????# #??# #???????????????????????????? | | ?## #######p#??# #???????????????????????????? | | ## # ##/#### ########????????????????????? | | # # pg # ####?????????????????? | | """ # ???????????????? | | = ! " " # #####????????????????? | | =% %""" " ##### ##????????????????????? | | ! % "%" #g #?????#?????????????????????? | | % ! " # #???????????????????????????? | | %% ####### #???????????????????????????? | | """ " #???????????????????????????? | | # """ # "%" #???????????????????????????? | | # """ # " #???????????????????????????? | | # [* / ########???????????????????????????? | | # ]/] # #??????????????????????????????????? | | # = # #??????????????????????????????????? | +----------------------------------------------------+ Best States ------------- Heat Dissipation 106 Coolant Potential 80 Energy Generation 65 Energy Capacity 525 Matter Stores 300 Matter Capacity 300 Sight Range 20 Robot Scan Range 16 Terrain Scan Density 10 ECM Strength 4 Jamming Range 16 Cloak Strength 3 Resistance: KI 20 Resistance: TH 20 Resistance: EX 20 Resistance: EM 20 Resistance: I 20 Resistance: S 20 Resistance: P 20 Weapon Cycling 30 Evasion (%) 67 Targeting Accuracy 5 Launcher Accuracy 20 Recoil Reduction 7 Energy Filtering 30 Offensive Hacking 20 Authchip Count 1 Item Schematics ----------------- VTOL Module | -6/Factory | Hacked Cesium-ion Thruster | -5/Factory | Hacked Cld. Cesium-ion Thruster | -5/Factory | Hacked Robot Schematics ------------------ None Fabricated ------------ Cld. Cesium-ion Thruster | x1 | -5/Factory Repaired ---------- Nothing Studied --------- VSS Leg | -8/Materials | Hacked Chainsword | -6/Factory | Hacked Lrn. Missile Launcher | -6/Factory | Hacked Flak Gun | -6/Factory | Hacked Alien Tech Used ----------------- Phase Armor Achievements -------------- Alien Tech Blue Mage Construction Begets Destruction Ghost 'Em Hornet's Nest Hot Goods Rockin' Loadout Sixth Sense Tank We Are Legion Challenges ------------ None Game ------ Seed UtilityComponentMaul Manual? 0 Play Time 02:17:10 Cumulative 30.4 hours Start 2026.02.18 @ 19:31:38 End 2026.02.18 @ 22:07:01 Sessions 1 Manual Loads 0 Difficulty Adventurer Special Mode None Game No. 37 Rogue 17 Adventurer 20 Explorer 0 Win Type - Total 0 Types 0/0/0/0/0/0/0/0/0/0 Lore% 19 Gallery% 30 Achievement% 23 Wizard Run 0 Options --------- Layout 0 ASCII 0 Keyboard 1 Movement Numpad Keybinds 0 Fullscreen 1 Font 24/Terminus Map View 183x50 Zoom Use 0% Tactical HUD 1 Map Filters NONE Filters NONE Steam 1 RUN: ef11c472-57df-4bed-971e-4821f4539fdc